bitfinex/quotes_SOLUSD_20250310
["timestamp","ask_amount","ask_price","bid_price","bid_amount"]
[1741621738985,26.75264886,123.41,123.36,61.5465982]
[1741621739184,26.89481043,123.41,123.36,61.5465982]
[1741621739600,18.79181043,123.41,123.33,0.063]
[1741621739794,26.89481043,123.41,123.33,0.063]
[1741621739995,26.89481043,123.41,123.36,61.5465982]
[1741621740411,88.44140863,123.41,123.36,61.5465982]
[1741621740597,88.44140863,123.41,123.37,61.5465982]
[1741621740598,26.89481043,123.41,123.37,61.5465982]
[1741621740803,26.89481043,123.41,123.36,61.5465982]
[1741621742318,26.89481043,123.41,123.33,0.063]
[1741621742319,20.0,123.36,123.33,0.063]
[1741621742494,171.94964886,123.35,123.33,0.063]
[1741621742684,171.94964886,123.35,123.34,61.5465982]
[1741621742884,171.94964886,123.35,123.33,61.6095982]
[1741621743080,171.94964886,123.35,123.33,0.063]
[1741621743613,153.3,123.4,123.34,61.5465982]
[1741621743813,18.64964886,123.39,123.37,61.5465982]
[1741621744022,26.75414886,123.39,123.34,61.5465982]
[1741621744314,80.19624706,123.36,123.33,0.063]
[1741621744485,90.84964886,123.36,123.33,0.063]
[1741621744688,90.84964886,123.36,123.33,61.6095982]
[1741621745021,90.84964886,123.36,123.35,61.5465982]
[1741621745223,90.84964886,123.36,123.34,61.5465982]
[1741621745384,81.1,123.38,123.35,61.5465982]
[1741621745588,99.74964886,123.38,123.37,61.5465982]
[1741621745816,18.64964886,123.39,123.36,61.5465982]
[1741621746289,18.64964886,123.4,123.36,61.5465982]
[1741621746684,18.64964886,123.4,123.33,0.063]
[1741621746685,18.64964886,123.4,123.35,61.5465982]
[1741621746917,18.64964886,123.4,123.36,61.5465982]
[1741621747719,18.64964886,123.4,123.35,8.1068]
[1741621747720,0.17619551,123.37,123.33,0.063]
[1741621747908,18.64964886,123.36,123.33,0.063]
[1741621748291,233.49624706,123.36,123.33,0.063]
[1741621748812,171.94964886,123.36,123.33,0.063]
[1741621749319,18.64964886,123.36,123.34,61.5465982]
[1741621749497,8.28199551,123.37,123.33,0.063]
[1741621749811,0.17619551,123.37,123.33,61.6095982]
[1741621750001,8.28189551,123.37,123.33,61.6095982]
[1741621750395,18.64964886,123.36,123.33,0.063]
[1741621750711,233.49624706,123.36,123.33,0.063]
[1741621751309,61.5465982,123.35,123.33,0.063]
[1741621751698,8.1076,123.34,123.33,0.063]
[1741621751900,88.44600863,123.34,123.33,0.063]
[1741621752218,38.64964886,123.29,123.27,0.063]
[1741621752414,80.19624706,123.28,123.27,0.063]
[1741621752617,18.64964886,123.28,123.27,0.063]
[1741621752816,72.2,123.31,123.27,61.6095982]
[1741621753114,61.5465982,123.3,123.27,0.063]
[1741621753302,18.64964886,123.28,123.27,0.063]
[1741621754517,180.20341043,123.28,123.27,0.063]
[1741621754810,88.5921702,123.28,123.27,0.063]
[1741621754995,88.30784706,123.28,123.27,0.063]
[1741621755200,80.19624706,123.28,123.27,0.063]
[1741621755410,88.30784706,123.28,123.27,0.063]
[1741621755607,80.19624706,123.28,123.27,0.063]
[1741621755922,88.30784706,123.28,123.27,0.063]
[1741621756124,18.64964886,123.28,123.27,0.063]
[1741621756996,26.76124886,123.28,123.27,0.063]
[1741621757219,88.30784706,123.28,123.27,0.063]
[1741621757429,20.0,123.24,123.22,0.03]
[1741621757600,81.5465982,123.24,123.22,0.03]
[1741621758002,18.64964886,123.23,123.22,0.03]
[1741621758195,80.19624706,123.23,123.22,0.03]
[1741621758801,233.49624706,123.23,123.22,0.03]
[1741621759127,80.33840863,123.23,123.22,0.03]
[1741621759723,18.64964886,123.23,123.22,0.03]
[1741621760022,18.64964886,123.26,123.22,0.03]
[1741621760520,18.64964886,123.27,123.22,61.5765982]
[1741621760916,18.64964886,123.27,123.23,61.5465982]
[1741621761227,18.64964886,123.28,123.23,61.5465982]
[1741621761806,8.1117,123.28,123.23,61.5465982]
[1741621762125,18.64964886,123.26,123.22,0.03]
[1741621762327,80.19624706,123.23,123.22,0.03]
[1741621762500,18.64964886,123.23,123.22,0.03]
[1741621762905,80.19624706,123.23,123.22,0.03]
[1741621763206,18.64964886,123.23,123.22,0.03]
[1741621763404,20.0,123.23,123.22,0.03]
[1741621763726,18.64964886,123.21,123.2,0.063]
[1741621763922,80.19624706,123.21,123.2,0.063]
[1741621764519,153.3,123.22,123.2,0.063]
[1741621764709,18.64964886,123.22,123.2,0.063]
[1741621764914,80.19624706,123.22,123.2,0.063]
[1741621765109,233.63840863,123.21,123.2,0.063]
[1741621765436,80.4805702,123.21,123.2,0.063]
[1741621765801,88.45460863,123.21,123.2,0.063]
[1741621766320,88.5967702,123.21,123.2,0.063]
[1741621767031,20.14216157,123.17,123.16,0.03]
[1741621767337,18.64964886,123.12,123.07,61.5465982]
[1741621767623,18.64964886,123.12,123.05,8.1264]
[1741621767624,18.64964886,123.12,123.06,61.5465982]
[1741621767833,26.77044886,123.14,123.1,61.5465982]
[1741621768017,26.77064886,123.14,123.11,61.5465982]
[1741621768219,26.77064886,123.14,123.1,61.5465982]
[1741621768420,18.64964886,123.12,123.09,0.03]
[1741621768623,18.64964886,123.12,123.09,61.5765982]
[1741621768807,18.64964886,123.15,123.11,61.5465982]
[1741621769308,18.64964886,123.16,123.12,61.5465982]
[1741621769525,0.14624244,123.17,123.15,61.5465982]
[1741621769727,0.14624244,123.17,123.14,61.5465982]
[1741621769952,0.14624244,123.17,123.13,61.5465982]
[1741621770111,0.14624244,123.17,123.15,61.5465982]
[1741621770312,0.14624244,123.17,123.14,61.5465982]
[1741621770537,0.14624244,123.17,123.15,61.5465982]
[1741621770734,0.14624244,123.17,123.16,61.5465982]
[1741621770931,0.14624244,123.17,123.16,61.83092134]
[1741621771115,0.14624244,123.17,123.16,61.5465982]
[1741621771317,0.14624244,123.17,123.16,123.37751954]
[1741621771635,0.14893704,123.19,123.18,20.14216157]
[1741621771933,0.16468697,123.2,123.19,0.14216157]
[1741621772139,0.16468697,123.2,123.19,61.68875977]
[1741621772315,0.16468697,123.2,123.15,2.0]
[1741621772316,153.3,123.19,123.12,8.1221]
[1741621772516,0.14216157,123.16,123.08,3.2566]
[1741621772723,61.5465982,123.11,123.06,63.4368982]
[1741621772924,18.64964886,123.1,123.05,69.6732982]
[1741621773125,72.2,123.12,123.09,61.5765982]
[1741621773333,72.2,123.12,123.09,0.03]
[1741621773530,18.64964886,123.11,123.09,0.03]
[1741621775211,72.2,123.12,123.09,61.5765982]
[1741621775418,72.2,123.12,123.1,61.5465982]
[1741621775735,81.1,123.15,123.11,61.5465982]
[1741621775916,0.16468697,123.2,123.14,61.5465982]
[1741621775917,81.1,123.19,123.14,61.5465982]
[1741621776116,89.2177,123.19,123.15,61.5465982]
[1741621776325,81.1,123.19,123.16,61.5465982]
[1741621776524,18.64964886,123.18,123.15,61.5465982]
[1741621777013,18.64964886,123.18,123.16,61.5465982]
[1741621777213,18.64964886,123.18,123.14,61.5465982]
[1741621778217,18.64964886,123.16,123.11,8.1226]
[1741621778428,81.1,123.18,123.14,61.5465982]
[1741621778631,18.64964886,123.19,123.14,61.5465982]
[1741621778825,18.64964886,123.19,123.15,61.5465982]
[1741621779027,0.16468697,123.2,123.17,61.68875977]
[1741621779226,0.16468697,123.2,123.19,61.5465982]
[1741621779430,0.16468697,123.2,123.18,61.5465982]
[1741621779627,0.16468697,123.2,123.14,0.14216157]
[1741621779918,0.16468697,123.2,123.17,69.6648982]
[1741621780126,0.16468697,123.2,123.18,61.5465982]
[1741621781633,0.16468697,123.2,123.19,61.5465982]
[1741621782034,0.16468697,123.2,123.19,69.80625977]
[1741621782338,0.16468697,123.2,123.19,69.94842134]
[1741621782845,0.16046928,123.21,123.2,0.14216157]
[1741621783016,0.16046928,123.21,123.2,61.68875977]
[1741621783938,0.16046928,123.21,123.2,69.80555977]
[1741621785623,0.16046928,123.21,123.19,0.14216157]
[1741621785823,0.16046928,123.21,123.2,61.68875977]
[1741621786032,0.16046928,123.21,123.2,69.94772134]
[1741621787145,0.16046928,123.21,123.19,0.14216157]
[1741621787350,0.16046928,123.21,123.2,69.80555977]
[1741621787842,0.33101478,123.21,123.2,69.80555977]
[1741621788848,0.33101478,123.21,123.17,8.26076157]
[1741621788849,0.1705455,123.21,123.17,8.26076157]
[1741621789046,0.1705455,123.21,123.18,61.68875977]
[1741621789230,0.1705455,123.21,123.2,61.68875977]
[1741621789546,0.1705455,123.21,123.2,61.83092134]
[1741621791030,0.1705455,123.21,123.2,69.94772134]
[1741621792745,0.1705455,123.21,123.2,8.40112314]
[1741621792933,0.1705455,123.21,123.2,69.94772134]
[1741621794251,0.1705455,123.21,123.2,70.01072134]
[1741621794551,0.1705455,123.21,123.2,0.20516157]
[1741621794921,0.1705455,123.21,123.2,61.89392134]
[1741621795145,0.1705455,123.21,123.2,70.01072134]
[1741621798930,0.00200548,123.22,123.21,0.14216157]
[1741621799147,0.00200548,123.22,123.21,61.83092134]
[1741621799342,0.00200548,123.22,123.21,8.40052314]
[1741621799630,0.00200548,123.22,123.21,69.94712134]
[1741621800939,0.00200548,123.22,123.21,61.83092134]
[1741621801137,0.00200548,123.22,123.2,0.063]
[1741621801335,0.00200548,123.22,123.21,69.94712134]
[1741621801532,0.15652501,123.23,123.22,0.28432314]
[1741621801752,0.15652501,123.23,123.22,63.04772659]
[1741621801753,0.05598904,123.23,123.22,63.04772659]
[1741621802260,0.17764212,123.28,123.25,20.28432314]
[1741621802563,0.17764212,123.28,123.27,80.4805702]
[1741621802727,0.03,123.34,123.31,18.933972]
[1741621802930,0.03,123.34,123.33,20.28432314]
[1741621803148,0.03,123.34,123.33,81.83092134]
[1741621803562,6.56668127,123.43,123.38,0.28432314]
[1741621803726,69.6474982,123.45,123.4,61.5465982]
[1741621803926,61.5465982,123.44,123.4,0.14216157]
[1741621804126,69.6474982,123.45,123.4,61.5465982]
[1741621804352,6.4772,123.47,123.43,61.5465982]
[1741621804572,6.4772,123.47,123.38,0.14216157]
[1741621804856,6.1096,123.52,123.45,61.5465982]
[1741621805165,8.0965,123.51,123.37,18.933972]
[1741621805342,72.2,123.51,123.45,61.68875977]
[1741621805656,72.2,123.51,123.46,61.5465982]
[1741621805657,61.5465982,123.51,123.46,61.5465982]
[1741621805837,61.5465982,123.49,123.45,0.28432314]
[1741621806047,14.2055,123.52,123.46,61.68875977]
[1741621806239,61.5465982,123.53,123.48,61.5465982]
[1741621807139,61.5465982,123.5,123.45,61.5465982]
[1741621807344,20.0,123.51,123.44,0.14216157]
[1741621807531,61.5465982,123.51,123.47,0.28432314]
[1741621807736,0.16768486,123.49,123.47,61.68875977]
[1741621807960,0.16768486,123.49,123.47,0.14216157]
[1741621808267,0.16768486,123.49,123.44,0.14216157]
[1741621808562,61.5465982,123.45,123.41,0.14216157]
[1741621808754,18.95949529,123.49,123.4,61.5465982]
[1741621808960,18.64964886,123.42,123.34,8.24976157]
[1741621809144,18.64964886,123.42,123.33,9.878]
[1741621809335,61.5465982,123.4,123.35,61.5465982]
[1741621809661,61.5465982,123.41,123.36,0.14216157]
[1741621809835,61.5465982,123.39,123.34,61.5465982]
[1741621810145,61.5465982,123.37,123.31,61.5465982]
[1741621810343,61.5465982,123.36,123.31,61.5465982]
[1741621810560,61.5465982,123.36,123.28,61.5465982]
[1741621810561,61.5465982,123.34,123.28,61.5465982]
[1741621810762,61.5465982,123.34,123.29,61.83092134]
[1741621810935,61.5465982,123.33,123.27,61.68875977]
[1741621811138,61.5465982,123.33,123.29,0.14216157]
[1741621811339,61.5465982,123.31,123.26,61.68875977]
[1741621811568,61.5465982,123.33,123.28,61.68875977]
[1741621811743,80.19624706,123.35,123.29,61.83092134]
[1741621812054,61.5465982,123.33,123.29,0.14216157]
[1741621812261,26.75684886,123.35,123.29,61.5465982]
[1741621812262,61.5465982,123.34,123.29,61.5465982]
[1741621812460,80.19624706,123.35,123.3,0.14216157]
[1741621812637,61.5465982,123.34,123.28,0.14216157]
[1741621813043,61.5465982,123.33,123.29,0.14216157]
[1741621813243,61.5465982,123.32,123.27,61.68875977]
[1741621813446,61.5465982,123.31,123.27,0.14216157]
[1741621813655,61.5465982,123.3,123.26,0.14216157]
[1741621813866,18.64964886,123.33,123.27,0.14216157]
[1741621814169,61.5465982,123.34,123.29,0.14216157]
[1741621814361,61.5465982,123.34,123.27,0.28432314]
[1741621814362,61.5465982,123.33,123.27,20.28432314]
[1741621814549,61.5465982,123.31,123.27,0.14216157]
[1741621814749,61.5465982,123.3,123.25,0.14216157]
[1741621815150,61.5465982,123.31,123.26,61.5465982]
[1741621815649,61.5465982,123.3,123.24,61.83092134]
[1741621815974,18.64964886,123.29,123.24,81.68875977]
[1741621816374,61.5465982,123.3,123.24,81.68875977]
[1741621816375,18.64964886,123.32,123.24,28.25626157]
[1741621816674,80.19624706,123.34,123.28,61.5465982]
[1741621816847,61.5465982,123.31,123.26,61.5465982]
[1741621817170,61.5465982,123.3,123.24,61.68875977]
[1741621817369,61.5465982,123.29,123.24,0.14216157]
[1741621817542,61.5465982,123.29,123.24,69.80275977]
[1741621817742,61.5465982,123.32,123.26,61.5465982]
[1741621817948,72.2,123.33,123.25,8.1134]
[1741621817949,18.64964886,123.34,123.28,61.5465982]
[1741621818249,61.5465982,123.33,123.28,61.5465982]
[1741621818454,18.64964886,123.36,123.31,61.5465982]
[1741621818756,18.64964886,123.36,123.32,61.5465982]
[1741621818962,159.6527,123.42,123.31,0.14216157]
[1741621819177,61.5465982,123.41,123.31,0.14216157]
[1741621819357,61.5465982,123.38,123.3,61.5465982]
[1741621819559,184.04867246,123.42,123.27,26.33330272]
[1741621819560,0.03,123.34,123.32,61.5465982]
[1741621819776,0.03,123.34,123.33,61.83092134]
[1741621820356,0.03,123.34,123.32,61.5465982]
[1741621820886,0.03,123.34,123.31,0.14216157]
[1741621821182,0.03,123.34,123.32,0.14216157]
[1741621821675,8.1096,123.31,123.25,61.5465982]
[1741621821879,61.5465982,123.31,123.26,0.14216157]
[1741621822085,18.64964886,123.32,123.26,0.14216157]
[1741621822086,61.5465982,123.3,123.26,0.14216157]
[1741621822289,61.5465982,123.29,123.24,61.68875977]
[1741621822753,61.5465982,123.28,123.23,61.5465982]
[1741621823088,61.5465982,123.28,123.23,0.14216157]
[1741621823262,171.94964886,123.31,123.23,0.14216157]
[1741621823263,61.5465982,123.27,123.23,0.14216157]
[1741621823672,61.5465982,123.27,123.22,61.68875977]
[1741621823871,61.5465982,123.27,123.22,0.14216157]
[1741621824080,80.19624706,123.26,123.21,0.063]
[1741621824282,61.5465982,123.25,123.21,0.063]
[1741621824883,61.5465982,123.24,123.21,0.063]
[1741621825776,80.19624706,123.25,123.21,0.063]
[1741621826087,18.64964886,123.27,123.23,61.5465982]
[1741621826377,80.19624706,123.24,123.21,0.063]
[1741621826580,61.5465982,123.23,123.21,0.063]
[1741621826966,80.19624706,123.22,123.21,0.063]
[1741621827173,61.5465982,123.23,123.21,0.063]
[1741621827355,61.5465982,123.24,123.21,0.063]
[1741621827555,110.84964886,123.25,123.21,0.063]
[1741621827556,81.5465982,123.25,123.21,0.063]
[1741621827785,0.1560315,123.22,123.21,8.1792]
[1741621827957,0.1560315,123.22,123.21,8.32136157]
[1741621828159,3.15e-05,123.22,123.21,70.01012134]
[1741621828371,6.93e-05,123.24,123.23,20.28432314]
[1741621828582,6.93e-05,123.24,123.23,143.37751954]
[1741621828886,6.93e-05,123.24,123.23,81.83092134]
[1741621829088,6.93e-05,123.24,123.23,61.83092134]
[1741621829389,6.93e-05,123.24,123.22,61.5465982]
[1741621830058,6.93e-05,123.24,123.23,8.1149]
[1741621830261,6.93e-05,123.24,123.22,69.6618982]
[1741621830957,6.93e-05,123.24,123.22,61.5465982]
[1741621831152,6.93e-05,123.24,123.21,69.7255982]
[1741621831378,80.19624706,123.22,123.21,0.063]
[1741621832197,88.31174706,123.22,123.21,0.063]
[1741621833196,80.19624706,123.22,123.21,0.063]
[1741621833486,88.31174706,123.22,123.21,0.063]
[1741621834397,171.94964886,123.21,123.2,0.063]
[1741621834573,233.49624706,123.21,123.2,0.063]
[1741621835496,8.1145693,123.24,123.2,0.063]
[1741621835699,80.19624706,123.23,123.2,0.063]
[1741621836079,61.5466675,123.24,123.2,0.063]
[1741621836600,80.19631636,123.24,123.2,0.063]
[1741621836808,61.5465982,123.23,123.2,0.063]
[1741621837108,10.82,123.22,123.2,0.063]
[1741621837284,10.82,123.22,123.2,61.6095982]
[1741621837486,10.82,123.22,123.21,0.14216157]
[1741621837684,10.82,123.22,123.21,61.68875977]
[1741621837871,10.82,123.22,123.2,61.6095982]
[1741621838072,10.82,123.22,123.2,0.063]
[1741621838585,10.82,123.22,123.2,61.6095982]
[1741621838796,10.82,123.22,123.21,61.68875977]
[1741621839379,10.82,123.22,123.21,0.14216157]
[1741621839585,10.82,123.22,123.2,0.063]
[1741621839785,10.82,123.22,123.2,0.20516157]
[1741621840188,10.82,123.22,123.2,61.75175977]
[1741621840495,10.82,123.22,123.2,0.20516157]
[1741621841105,10.82,123.22,123.21,0.14216157]
[1741621841398,10.82,123.22,123.21,61.68875977]
[1741621841782,10.8,123.23,123.22,0.14216157]
[1741621842101,10.8,123.23,123.2,0.063]
[1741621842305,10.8,123.23,123.2,0.20516157]
[1741621842501,10.8,123.23,123.2,0.063]
[1741621842681,80.4614982,123.23,123.21,0.063]
[1741621842885,10.8,123.23,123.21,0.063]
[1741621843102,8.1145693,123.24,123.21,61.75175977]
[1741621843103,0.0300693,123.24,123.21,61.75175977]
[1741621843308,0.0300693,123.24,123.23,61.5465982]
[1741621843496,0.0300693,123.24,123.22,61.5465982]
[1741621843807,0.0300693,123.24,123.23,61.5465982]
[1741621844203,0.0300693,123.24,123.22,8.25746157]
[1741621844411,0.0300693,123.24,123.23,61.68875977]
[1741621844589,0.0300693,123.24,123.23,61.83092134]
[1741621844907,0.0300693,123.24,123.23,0.14216157]
[1741621845207,0.0300693,123.24,123.22,69.80405977]
[1741621845208,0.0300693,123.24,123.21,0.063]
[1741621845375,61.5766675,123.24,123.21,0.063]
[1741621845777,61.5465982,123.23,123.21,0.063]
[1741621846204,61.5465982,123.22,123.21,0.063]
[1741621846509,88.31174706,123.22,123.21,0.063]
[1741621846686,18.64964886,123.21,123.2,0.063]
[1741621846889,80.4805702,123.21,123.2,0.0001]
[1741621847290,80.19624706,123.21,123.2,0.0001]
[1741621847696,80.36602478,123.21,123.2,0.0001]
[1741621848403,88.48222478,123.21,123.2,0.0001]
[1741621850484,29.61942658,123.21,123.2,0.0001]
[1741621851009,10.96977772,123.21,123.2,0.0001]
[1741621851504,99.28222478,123.21,123.2,0.0001]
[1741621852780,252.86654792,123.21,123.2,0.0001]
[1741621853116,38.933972,123.17,123.13,0.063]
[1741621853405,80.19624706,123.14,123.13,0.063]
[1741621853609,90.99624706,123.14,123.13,0.063]
[1741621854490,99.11704706,123.14,123.13,0.063]
[1741621854994,105.75214304,123.14,123.13,0.063]
[1741621855501,61.5465982,123.15,123.13,0.063]
[1741621855701,90.99624706,123.14,123.13,0.063]
[1741621856489,99.11704706,123.14,123.13,0.063]
[1741621856695,252.41704706,123.14,123.13,0.063]
[1741621857501,240.31074706,123.14,123.13,0.063]
[1741621857686,232.18994706,123.14,123.13,0.063]
[1741621858592,181.44334886,123.14,123.13,0.063]
[1741621859007,10.8,123.14,123.13,0.063]
[1741621859811,90.99624706,123.14,123.13,0.063]
[1741621860209,99.11704706,123.14,123.13,0.063]
[1741621860416,10.8,123.14,123.13,0.063]
[1741621860909,80.4673982,123.14,123.13,0.063]
[1741621861100,10.8,123.14,123.13,0.063]
[1741621863024,99.11704706,123.14,123.13,0.063]
[1741621863219,29.44964886,123.14,123.13,0.063]
[1741621863410,10.8,123.14,123.13,0.063]
[1741621864615,99.11704706,123.14,123.13,0.063]
[1741621864807,90.99624706,123.14,123.13,0.063]
[1741621865004,10.8,123.14,123.13,0.063]
[1741621867711,10.97061261,123.14,123.13,0.063]
[1741621867918,0.17061261,123.14,123.13,61.89392134]
[1741621868414,0.17061261,123.14,123.13,61.75175977]
[1741621868612,0.17061261,123.14,123.13,70.01532134]
[1741621868805,0.16042281,123.15,123.13,70.01532134]
[1741621869005,0.16042281,123.15,123.14,61.68875977]
[1741621869221,0.16042281,123.15,123.14,0.14216157]
[1741621869419,0.16042281,123.15,123.14,61.68875977]
[1741621869712,0.16042281,123.15,123.14,61.83092134]
[1741621870301,0.16042281,123.15,123.14,0.14216157]
[1741621870623,0.16042281,123.15,123.14,61.5465982]
[1741621871121,0.16042281,123.15,123.14,61.68875977]
[1741621871426,0.16042281,123.15,123.14,61.83092134]
[1741621871605,0.16042281,123.15,123.14,61.68875977]
[1741621871809,0.16042281,123.15,123.13,69.87315977]
[1741621872002,0.16042281,123.15,123.13,8.32656157]
[1741621872199,0.16042281,123.15,123.14,61.68875977]
[1741621872398,0.16042281,123.15,123.14,61.83092134]
[1741621872799,0.16042281,123.15,123.14,69.80955977]
[1741621873024,0.16042281,123.15,123.14,69.95172134]
[1741621873530,0.15575387,123.17,123.16,20.28432314]
[1741621873531,5.387e-05,123.17,123.16,20.28432314]
[1741621873700,5.387e-05,123.17,123.16,101.69792956]
[1741621873900,5.387e-05,123.17,123.16,81.83092134]
[1741621874123,5.387e-05,123.17,123.16,0.14216157]
[1741621874325,5.387e-05,123.17,123.16,61.68875977]
[1741621874627,5.387e-05,123.17,123.16,61.83092134]
[1741621874824,5.387e-05,123.17,123.16,69.80825977]
[1741621875231,5.387e-05,123.17,123.15,8.26196157]
[1741621875537,5.387e-05,123.17,123.16,61.83092134]
[1741621876228,5.387e-05,123.17,123.16,80.4805702]
[1741621876918,5.387e-05,123.17,123.16,88.6000702]
[1741621877230,5.387e-05,123.17,123.16,69.95042134]
[1741621878405,1.16e-05,123.18,123.17,0.28432314]
[1741621878608,1.16e-05,123.18,123.17,61.83092134]
[1741621878828,1.378e-05,123.19,123.17,131.49631954]
[1741621879013,0.15581437,123.2,123.18,61.68875977]
[1741621879213,0.15581437,123.2,123.19,81.83092134]
[1741621880738,1.437e-05,123.2,123.19,100.4805702]
[1741621880941,1.437e-05,123.2,123.19,108.5980702]
[1741621881116,1.437e-05,123.2,123.19,89.94842134]
[1741621881630,1.437e-05,123.2,123.19,108.5980702]
[1741621882326,1.437e-05,123.2,123.19,109.81512608]
[1741621882546,1.437e-05,123.2,123.19,89.94842134]
[1741621884243,1.437e-05,123.2,123.19,28.40182314]
[1741621884448,1.437e-05,123.2,123.19,69.62573854]
[1741621886049,1.437e-05,123.2,123.18,8.25986157]
[1741621886221,1.437e-05,123.2,123.18,49.48377697]
[1741621886436,1.437e-05,123.2,123.19,41.36607697]
[1741621887129,1.437e-05,123.2,123.19,49.62573854]
[1741621887952,8.159e-05,123.2,123.19,49.62573854]
[1741621888361,7.05e-05,123.21,123.2,0.14216157]
[1741621888532,7.05e-05,123.21,123.2,41.50823854]
[1741621888954,7.05e-05,123.21,123.2,49.62503854]
[1741621892938,7.05e-05,123.21,123.2,68.2746874]
[1741621893127,7.841e-05,123.23,123.22,0.28432314]
[1741621893337,7.841e-05,123.23,123.22,41.50823854]
[1741621893664,7.841e-05,123.23,123.2,8.1168]
[1741621893875,7.841e-05,123.23,123.18,1.35892915]
[1741621893876,18.64964886,123.21,123.17,8.1188]
[1741621894253,10.76,123.22,123.18,0.14216157]
[1741621894649,41.2239154,123.2,123.16,0.063]
[1741621894849,41.2239154,123.2,123.16,8.32456157]
[1741621895069,18.64964886,123.21,123.17,41.2239154]
[1741621895271,10.76,123.22,123.17,41.2239154]
[1741621895473,51.9839154,123.22,123.17,41.2239154]
[1741621895850,41.2239154,123.21,123.16,8.32456157]
[1741621896072,41.2239154,123.21,123.16,49.54847697]
[1741621896577,41.2239154,123.22,123.18,0.14216157]
[1741621896877,10.76,123.21,123.19,41.36607697]
[1741621897080,10.76,123.21,123.2,41.2239154]
[1741621897376,10.76,123.21,123.2,49.62503854]
[1741621898347,7.841e-05,123.23,123.22,20.14216157]
[1741621898548,1.673e-05,123.24,123.23,0.28432314]
[1741621898747,0.16857649,123.26,123.25,0.28432314]
[1741621898966,8.481e-05,123.27,123.25,41.50823854]
[1741621899278,9.995e-05,123.29,123.27,18.933972]
[1741621899455,0.03,123.3,123.29,0.28432314]
[1741621899648,0.03,123.3,123.29,61.50823854]
[1741621899855,0.03,123.3,123.29,102.73215394]
[1741621900053,0.03,123.3,123.29,121.3818028]
[1741621901081,0.03,123.3,123.29,61.36607697]
[1741621901282,0.03,123.3,123.29,41.36607697]
[1741621902087,0.03,123.3,123.26,41.2239154]
[1741621902383,51.9839154,123.29,123.25,0.14216157]
[1741621902560,59.87356426,123.28,123.23,0.14216157]
[1741621902752,41.2239154,123.27,123.22,41.2239154]
[1741621902955,41.2239154,123.25,123.21,41.2239154]
[1741621903154,41.2239154,123.23,123.18,41.2239154]
[1741621903372,51.9839154,123.22,123.17,41.2239154]
[1741621903581,51.9839154,123.22,123.16,0.063]
[1741621903582,41.2239154,123.2,123.16,0.063]
[1741621903757,41.2239154,123.2,123.16,0.20516157]
[1741621904170,51.9839154,123.22,123.17,41.2239154]
[1741621904377,10.76,123.22,123.19,61.8726709]
[1741621904578,10.76,123.22,123.2,0.063]
[1741621904875,10.76,123.22,123.21,61.8726709]
[1741621905198,10.76,123.22,123.21,62.01483247]
[1741621905483,10.76,123.22,123.2,0.20516157]
[1741621905484,10.76,123.22,123.2,61.9356709]
[1741621905688,10.76,123.22,123.2,0.063]
[1741621905856,10.76,123.22,123.2,61.9356709]
[1741621906057,10.76,123.22,123.2,0.063]
[1741621907793,0.17612024,123.21,123.2,0.063]
[1741621907969,62.04879114,123.21,123.2,0.063]
[1741621910189,153.44216157,123.2,123.16,0.063]
[1741621910394,80.52231976,123.17,123.16,0.063]
[1741621910777,295.44231976,123.17,123.16,0.063]
[1741621911298,233.56964886,123.17,123.16,0.063]
[1741621911683,295.44231976,123.17,123.16,0.063]
[1741621912206,303.56111976,123.17,123.16,0.063]
[1741621912409,233.56964886,123.17,123.16,0.063]
[1741621913012,244.30964886,123.17,123.16,0.063]
[1741621913816,214.92,123.17,123.16,61.9356709]
[1741621913998,225.66,123.17,123.16,61.9356709]
[1741621914310,10.74,123.17,123.16,70.33949404]
[1741621914678,0.17612024,123.21,123.17,0.14216157]
[1741621914907,0.17612024,123.21,123.19,62.01483247]
[1741621915116,0.17612024,123.21,123.2,61.8726709]
[1741621915285,10.91612024,123.21,123.2,61.8726709]
[1741621916182,10.91612024,123.21,123.19,61.8726709]
[1741621916372,10.91612024,123.21,123.2,61.8726709]
[1741621917490,10.91612024,123.21,123.2,62.01483247]
[1741621918106,10.91612024,123.21,123.18,0.14216157]
[1741621918406,10.91612024,123.21,123.2,61.8726709]
[1741621918785,10.91612024,123.21,123.19,61.8726709]
[1741621919409,19.03242024,123.21,123.18,61.8726709]
[1741621920513,19.03232024,123.21,123.16,8.46662314]
[1741621920706,19.03232024,123.21,123.18,61.8726709]
[1741621921013,10.91612024,123.21,123.2,61.8726709]